fUST/lending_fUST_20250102
["ID","MTS","AMOUNT","RATE_DAILY","PERIOD"]
[347409156,1735771850908,-677.28,0.00019726,3]
[347409157,1735771850917,-522.91,0.00019726,3]
[347409158,1735771850927,-500.0,0.00019726,3]
[347409159,1735771850935,-500.0,0.00019726,3]
[347409160,1735771850945,-500.0,0.00019726,3]
[347409161,1735771850955,-907.59,0.00019726,3]
[347409162,1735771850964,-740.71,0.00019726,3]
[347409163,1735771850973,-500.0,0.00019726,3]
[347409164,1735771850983,-500.0,0.00019726,3]
[347409165,1735771850992,-500.0,0.00019726,3]
[347409166,1735771851002,-500.0,0.00019726,3]
[347409167,1735771851011,-1112.49,0.00019726,3]
[347409168,1735771851020,-885.84,0.00019726,3]
[347409169,1735771851029,-150.23,0.00019726,2]
[347409170,1735771851038,-545.00097887,0.00019726,3]
[347409171,1735771851047,-500.0,0.00019726,3]
[347409172,1735771851057,-673.67,0.00019726,3]
[347409173,1735771851066,-500.0,0.00019726,3]
[347409174,1735771851075,-500.0,0.00019726,3]
[347409175,1735771851085,-500.0,0.00019726,3]
[347409176,1735771851094,-49.73643861,0.00019726,3]
[347409177,1735771851230,-450.26356139,0.00019726,3]
[347409178,1735771851240,-500.0,0.00019726,3]
[347409179,1735771851249,-500.0,0.00019726,3]
[347409180,1735771851259,-500.0,0.00019726,3]
[347409181,1735771851269,-500.0,0.00019726,3]
[347409182,1735771851278,-17.69643861,0.00019726,3]
[347409183,1735771851290,-1073.14356139,0.00019726,3]
[347409184,1735771851299,-500.0,0.00019726,3]
[347409185,1735771851308,-500.0,0.00019726,3]
[347409186,1735771851318,-500.0,0.00019726,3]
[347409187,1735771851327,-720.67,0.00019726,3]
[347409188,1735771851336,-500.0,0.00019726,3]
[347409189,1735771851346,-500.0,0.00019726,3]
[347409190,1735771851355,-705.25,0.00019726,3]
[347409191,1735771851364,-500.0,0.00019726,3]
[347409192,1735771851373,-1263.91,0.00019726,3]
[347409193,1735771851383,-500.0,0.00019726,3]
[347409194,1735771851392,-500.0,0.00019726,3]
[347409195,1735771851402,-773.93,0.00019726,3]
[347409196,1735771851411,-500.0,0.00019726,3]
[347409197,1735771851420,-500.0,0.00019726,3]
[347409198,1735771851430,-500.0,0.00019726,3]
[347409199,1735771851440,-868.03255,0.00019726,2]
[347409200,1735771851451,-500.0,0.00019726,3]
[347409201,1735771851461,-500.0,0.00019726,3]
[347409202,1735771851471,-868.03255013,0.00019726,2]
[347409203,1735771851480,-500.0,0.00019726,3]
[347409204,1735771851489,-500.0,0.00019726,3]
[347409205,1735771851499,-584.52,0.00019726,3]
[347409206,1735771851509,-804.66,0.00019726,3]
[347409207,1735771851518,-684.13,0.00019726,3]
[347409208,1735771851528,-500.0,0.00019726,3]
[347409209,1735771851538,-500.0,0.00019726,3]
[347409210,1735771851547,-500.0,0.00019726,3]
[347409211,1735771851557,-150.2,0.00019726,3]
[347409212,1735771851566,-778.81,0.00019726,3]
[347409213,1735771851575,-500.0,0.00019726,3]
[347409214,1735771851585,-500.0,0.00019726,3]
[347409215,1735771851595,-1011.51,0.00019726,3]
[347409216,1735771851605,-500.0,0.00019726,3]
[347409217,1735771851614,-6170.35,0.00019726,3]
[347409218,1735771851630,-469.18353225,0.00019726,3]
[347409219,1735771851645,-2357.25,0.00019726,3]
[347409220,1735771851660,-500.0,0.00019726,3]
[347409221,1735771851672,-631.06,0.00019726,3]
[347409222,1735771851686,-841.14,0.00019726,3]
[347409223,1735771851700,-500.0,0.00019726,3]
[347409224,1735771851714,-500.0,0.00019726,3]
[347409225,1735771851729,-500.0,0.00019726,3]
[347409226,1735771851742,-500.0,0.00019726,3]
[347409227,1735771851759,-524.72,0.00019726,3]
[347409228,1735771851774,-1049.52,0.00019726,3]
[347409229,1735771851787,-693.94,0.00019726,3]
[347409230,1735771851800,-500.0,0.00019726,3]
[347409231,1735771851812,-4607.72,0.00019726,3]
[347409232,1735771851826,-500.0,0.00019726,3]
[347409233,1735771851840,-924.78,0.00019726,3]
[347409234,1735771851852,-500.0,0.00019726,3]
[347409235,1735771851864,-500.0,0.00019726,3]
[347409236,1735771851876,-500.0,0.00019726,3]
[347409237,1735771851888,-500.0,0.00019726,3]
[347409238,1735771851901,-564.78,0.00019726,3]
[347409239,1735771851914,-500.0,0.00019726,3]
[347409240,1735771851927,-1431.32,0.00019726,3]
[347409241,1735771851943,-500.0,0.00019726,3]
[347409242,1735771851957,-500.0,0.00019726,3]
[347409243,1735771851972,-500.0,0.00019726,3]
[347409244,1735771851983,-1155.58,0.00019726,3]
[347409245,1735771851994,-500.0,0.00019726,3]
[347409246,1735771852005,-1829.34,0.00019726,3]
[347409247,1735771852019,-500.0,0.00019726,3]
[347409248,1735771852034,-500.0,0.00019726,3]
[347409249,1735771852046,-500.0,0.00019726,3]
[347409250,1735771852057,-707.49,0.00019726,3]
[347409251,1735771852069,-631.16348392,0.00019726,3]
[347409257,1735772780409,349.7,0.00025,120]
[347409272,1735772965134,-184.633672,0.00013288,2]
[347409273,1735772965157,-62.38761509,0.00013973,2]
[347409319,1735773032894,-228.180588,0.00013973,2]
[347409320,1735773032903,-812.0045634,0.00018014,2]
[347409321,1735773032913,-149.47624753,0.0001874,2]
[347409353,1735773038528,-326.30275247,0.0001874,2]
[347409355,1735773038538,-166.254068,0.000188,3]
[347409357,1735773038547,-5164.75756255,0.00018865,2]
[347409368,1735773038733,-155.55659496,0.00018977,2]
[347409370,1735773038743,-458.0,0.00019029,2]
[347409372,1735773038752,-208.8042929,0.00019077,2]
[347409374,1735773038762,-1421.58901458,0.00019078,2]
[347409376,1735773038771,-187.0,0.000191,8]
[347409378,1735773038780,-300.0,0.00019172,2]
[347409379,1735773038790,-509.44834439,0.00019173,2]
[347409380,1735773038799,-500.0,0.00019173,2]
[347409381,1735773038808,-500.0,0.00019176,2]
[347409382,1735773038818,-182.362,0.00019176,2]
[347409383,1735773038827,-69.92537015,0.00019177,2]
[347409384,1735773038838,-430.07462985,0.00019177,2]
[347409385,1735773038847,-500.0,0.00019177,2]
[347409386,1735773038856,-500.0,0.00019177,2]
[347409387,1735773038867,-500.0,0.00019177,2]
[347409388,1735773038877,-500.0,0.00019177,2]
[347409389,1735773038886,-500.0,0.00019177,2]
[347409390,1735773038895,-500.0,0.00019177,2]
[347409391,1735773038905,-500.0,0.00019177,2]
[347409392,1735773038914,-500.0,0.00019177,2]
[347409393,1735773038924,-500.0,0.00019177,2]
[347409394,1735773038933,-155.0,0.00019177,2]
[347409395,1735773038942,-500.0,0.00019177,2]
[347409396,1735773038952,-386.37297563,0.00019177,2]
[347409397,1735773038962,-500.0,0.00019177,2]
[347409398,1735773038971,-500.0,0.00019177,2]
[347409399,1735773038980,-500.0,0.00019177,2]
[347409400,1735773038990,-500.0,0.00019177,2]
[347409401,1735773038999,-500.0,0.00019177,2]
[347409402,1735773039009,-500.0,0.00019177,2]
[347409403,1735773039019,-500.0,0.00019177,2]
[347409404,1735773039028,-500.0,0.00019177,2]
[347409405,1735773039038,-500.0,0.00019177,2]
[347409406,1735773039047,-500.0,0.00019177,2]
[347409407,1735773039056,-500.0,0.00019177,2]
[347409408,1735773039066,-500.0,0.00019177,2]
[347409409,1735773039075,-500.0,0.00019177,2]
[347409410,1735773039085,-500.0,0.00019177,2]
[347409411,1735773039094,-500.0,0.00019177,2]
[347409412,1735773039103,-500.0,0.00019177,2]
[347409413,1735773039113,-500.0,0.00019177,2]
[347409414,1735773039122,-500.0,0.00019177,2]
[347409415,1735773039131,-500.0,0.00019177,2]
[347409416,1735773039141,-500.0,0.00019177,2]
[347409417,1735773039150,-500.0,0.00019177,2]
[347409418,1735773039159,-500.0,0.00019177,2]
[347409419,1735773039168,-500.0,0.00019177,2]
[347409420,1735773039178,-500.0,0.00019177,2]
[347409421,1735773039187,-500.0,0.00019177,2]
[347409422,1735773039200,-500.0,0.00019177,2]
[347409423,1735773039212,-500.0,0.00019177,2]
[347409424,1735773039221,-500.0,0.00019177,2]
[347409425,1735773039231,-500.0,0.00019177,2]
[347409426,1735773039241,-500.0,0.00019177,2]
[347409427,1735773039251,-500.0,0.00019177,2]
[347409428,1735773039261,-229.96751518,0.00019177,2]
[347409429,1735773039273,-450.0,0.00019177,2]
[347409430,1735773039282,-500.0,0.00019177,2]
[347409431,1735773039291,-500.0,0.00019177,2]
[347409432,1735773039301,-500.0,0.00019177,2]
[347409433,1735773039310,-500.0,0.00019177,2]
[347409434,1735773039319,-500.0,0.00019177,2]
[347409435,1735773039329,-182.55300156,0.00019177,2]
[347409436,1735773039338,-500.0,0.00019177,2]
[347409437,1735773039348,-500.0,0.00019177,2]
[347409438,1735773039357,-500.0,0.00019177,2]
[347409439,1735773039366,-500.0,0.00019177,2]
[347409440,1735773039376,-500.0,0.00019177,2]
[347409441,1735773039385,-500.0,0.00019177,2]
[347409442,1735773039395,-500.0,0.00019177,2]
[347409443,1735773039404,-500.0,0.00019177,2]
[347409444,1735773039414,-500.0,0.00019177,2]
[347409445,1735773039424,-500.0,0.00019177,2]
[347409446,1735773039433,-500.0,0.00019177,2]
[347409447,1735773039442,-500.0,0.00019177,2]
[347409448,1735773039451,-500.0,0.00019177,2]
[347409449,1735773039462,-500.0,0.00019177,2]
[347409450,1735773039471,-500.0,0.00019177,2]
[347409451,1735773039480,-500.0,0.00019177,2]
[347409452,1735773039489,-500.0,0.00019177,2]
[347409453,1735773039499,-500.0,0.00019177,2]
[347409454,1735773039508,-500.0,0.00019177,2]
[347409455,1735773039517,-500.0,0.00019177,2]
[347409456,1735773039527,-500.0,0.00019177,2]
[347409457,1735773039536,-500.0,0.00019177,2]
[347409458,1735773039545,-500.0,0.00019177,2]
[347409459,1735773039555,-573.42078211,0.00019177,2]
[347409460,1735773039565,-500.0,0.00019177,2]
[347409461,1735773039574,-500.0,0.00019177,2]
[347409462,1735773039583,-500.0,0.00019177,2]
[347409463,1735773039592,-500.0,0.00019177,2]
[347409464,1735773039601,-500.0,0.00019177,2]
[347409465,1735773039610,-500.0,0.00019177,2]
[347409466,1735773039620,-500.0,0.00019177,2]
[347409467,1735773039629,-500.0,0.00019177,2]
[347409468,1735773039638,-500.0,0.00019177,2]
[347409469,1735773039648,-500.0,0.00019177,2]
[347409470,1735773039657,-500.0,0.00019177,2]
[347409471,1735773039667,-500.0,0.00019177,2]
[347409472,1735773039676,-500.0,0.00019177,2]
[347409473,1735773039685,-500.0,0.00019177,2]
[347409474,1735773039695,-500.0,0.00019177,2]
[347409475,1735773039706,-555.76811986,0.00019177,2]
[347409476,1735773039716,-500.0,0.00019177,2]
[347409477,1735773039726,-500.0,0.00019177,2]
[347409478,1735773039736,-500.0,0.00019177,2]
[347409479,1735773039746,-500.0,0.00019177,2]
[347409480,1735773039756,-500.0,0.00019177,2]
[347409481,1735773039765,-500.0,0.00019177,2]
[347409482,1735773039774,-500.0,0.00019177,2]
[347409483,1735773039783,-500.0,0.00019177,2]
[347409484,1735773039793,-500.0,0.00019177,2]
[347409485,1735773039802,-500.0,0.00019177,2]
[347409486,1735773039811,-500.0,0.00019177,2]
[347409487,1735773039821,-500.0,0.00019177,2]
[347409488,1735773039830,-500.0,0.00019177,2]
[347409489,1735773039840,-500.0,0.00019177,2]
[347409490,1735773039849,-500.0,0.00019177,2]
[347409491,1735773039858,-500.0,0.00019177,2]
[347409492,1735773039869,-500.0,0.00019177,2]
[347409493,1735773039878,-500.0,0.00019177,2]
[347409494,1735773039888,-500.0,0.00019177,2]
[347409495,1735773039897,-500.0,0.00019178,2]
[347409496,1735773039906,-500.0,0.00019178,2]
[347409497,1735773039916,-602.28563472,0.00019178,2]
[347409498,1735773039925,-500.0,0.00019178,2]
[347409499,1735773039935,-500.0,0.00019178,2]
[347409500,1735773039944,-500.0,0.00019178,2]
[347409501,1735773039953,-500.0,0.00019178,2]
[347409502,1735773039962,-500.0,0.00019178,2]
[347409503,1735773039971,-500.0,0.00019178,2]
[347409504,1735773039981,-500.0,0.00019178,2]
[347409505,1735773039989,-256.6484468,0.00019178,2]
[347409506,1735773039999,-501.05594203,0.00019178,2]
[347409507,1735773040008,-500.0,0.00019178,2]
[347409508,1735773040018,-503.79339194,0.00019178,2]
[347409509,1735773040028,-500.0,0.00019178,2]
[347409510,1735773040037,-491.75639438,0.00019178,2]
[347409511,1735773040046,-542.4615973,0.00019178,2]
[347409512,1735773040056,-500.0,0.00019178,2]
[347409513,1735773040065,-191.41818503,0.00019178,2]
[347409514,1735773040075,-500.0,0.00019178,2]
[347409515,1735773040084,-500.0,0.00019178,2]
[347409516,1735773040094,-500.0,0.00019178,2]
[347409517,1735773040103,-500.0,0.00019178,2]
[347409518,1735773040113,-500.0,0.00019178,2]
[347409519,1735773040123,-214.53609769,0.00019178,2]
[347409520,1735773040133,-500.0,0.00019178,2]
[347409521,1735773040142,-500.0,0.00019178,2]
[347409522,1735773040152,-500.0,0.00019178,2]
[347409523,1735773040162,-151.0,0.00019178,2]
[347409524,1735773040171,-520.64364815,0.00019178,2]
[347409525,1735773040181,-500.0,0.00019178,2]
[347409526,1735773040190,-500.0,0.00019178,2]
[347409527,1735773040205,-151.0,0.00019178,2]
[347409528,1735773040214,-151.0,0.00019178,2]
[347409529,1735773040224,-500.0,0.00019178,2]
[347409530,1735773040234,-500.0,0.00019178,2]
[347409531,1735773040245,-500.0,0.00019178,2]
[347409532,1735773040254,-500.0,0.00019178,2]
[347409533,1735773040264,-500.0,0.00019178,2]
[347409534,1735773040277,-500.0,0.00019178,2]
[347409535,1735773040286,-500.0,0.00019178,2]
[347409536,1735773040296,-1803.2,0.00019178,2]
[347409537,1735773040306,-500.0,0.00019178,2]
[347409538,1735773040315,-5833.17,0.00019178,2]
[347409540,1735773040325,-500.0,0.00019178,2]
[347409542,1735773040334,-500.0,0.00019178,2]
[347409544,1735773040343,-500.0,0.00019178,2]
[347409546,1735773040353,-151.0,0.00019178,2]
[347409548,1735773040362,-500.0,0.00019178,2]
[347409550,1735773040371,-399.51969541,0.00019178,2]
[347409553,1735773040381,-151.0,0.00019178,2]
[347409554,1735773040390,-500.0,0.00019178,2]
[347409557,1735773040399,-588.90742446,0.00019178,2]
[347409559,1735773040409,-500.0,0.00019178,2]
[347409561,1735773040419,-598.62,0.00019178,2]
[347409563,1735773040427,-151.0,0.00019178,2]
[347409565,1735773040437,-598.33,0.00019178,2]
[347409567,1735773040447,-500.0,0.00019178,2]
[347409569,1735773040457,-500.0,0.00019178,2]
[347409571,1735773040466,-500.0,0.00019178,2]
[347409572,1735773040476,-500.0,0.00019178,2]
[347409574,1735773040485,-500.0,0.00019178,2]
[347409576,1735773040494,-500.0,0.00019178,2]
[347409578,1735773040504,-500.0,0.00019178,2]
[347409580,1735773040513,-500.0,0.00019178,2]
[347409582,1735773040522,-500.0,0.00019178,2]
[347409584,1735773040532,-500.0,0.00019178,2]
[347409586,1735773040541,-500.0,0.00019178,2]
[347409588,1735773040550,-521.63,0.00019178,2]
[347409590,1735773040560,-515.04,0.00019178,2]
[347409592,1735773040569,-500.0,0.00019178,2]
[347409595,1735773040580,-457.1425797,0.00019178,2]
[347409597,1735773040595,-42.8574203,0.00019178,2]
[347409599,1735773040605,-500.0,0.00019178,2]
[347409601,1735773040614,-500.0,0.00019178,2]
[347409603,1735773040624,-189.68882962,0.00019178,2]
[347409605,1735773040633,-500.0,0.00019178,2]
[347409607,1735773040642,-500.0,0.00019178,2]
[347409609,1735773040652,-500.0,0.00019178,2]
[347409611,1735773040661,-125.04409583,0.00019178,2]
[347409613,1735773040672,-25.95590417,0.00019178,2]
[347409615,1735773040682,-500.0,0.00019178,2]
[347409617,1735773040690,-500.0,0.00019178,2]
[347409619,1735773040700,-500.0,0.00019178,2]
[347409621,1735773040711,-151.584173,0.00019178,2]
[347409623,1735773040720,-500.0,0.00019178,2]
[347409625,1735773040729,-500.0,0.00019178,2]
[347409626,1735773040739,-500.0,0.00019178,2]
[347409628,1735773040748,-151.0,0.00019178,2]
[347409629,1735773040757,-191.781748,0.00019178,2]
[347409631,1735773040767,-500.0,0.00019178,2]
[347409633,1735773040776,-151.0,0.00019178,2]
[347409635,1735773040786,-500.0,0.00019178,2]
[347409637,1735773040796,-733.07,0.00019178,2]
[347409638,1735773040805,-500.0,0.00019178,2]
[347409640,1735773040815,-500.0,0.00019178,2]
[347409642,1735773040824,-500.0,0.00019178,2]
[347409644,1735773040833,-500.0,0.00019178,2]
[347409646,1735773040843,-500.0,0.00019178,2]
[347409648,1735773040852,-500.0,0.00019178,2]
[347409651,1735773040862,-500.0,0.00019178,2]
[347409652,1735773040871,-645.90972198,0.00019178,2]
[347409655,1735773040881,-510.52685621,0.00019178,2]
[347409657,1735773040890,-500.0,0.00019178,2]
[347409659,1735773040900,-151.0,0.00019178,2]
[347409661,1735773040909,-151.0,0.00019178,2]
[347409662,1735773040918,-520.04,0.00019178,2]
[347409665,1735773040928,-5694.35,0.00019178,2]
[347409667,1735773040938,-500.0,0.00019178,2]
[347409669,1735773040948,-500.0,0.00019178,2]
[347409671,1735773040959,-524.57,0.00019178,2]
[347409673,1735773040969,-500.0,0.00019178,2]
[347409675,1735773040979,-877.48,0.00019178,2]
[347409677,1735773040988,-500.0,0.00019178,2]
[347409679,1735773040997,-504.0,0.00019178,2]
[347409681,1735773041006,-200.0,0.00019178,2]
[347409683,1735773041016,-151.0,0.00019178,2]
[347409685,1735773041026,-500.0,0.00019178,2]
[347409687,1735773041035,-500.0,0.00019178,2]
[347409689,1735773041045,-151.0,0.00019178,2]
[347409691,1735773041054,-151.0,0.00019178,2]
[347409693,1735773041063,-500.0,0.00019178,2]
[347409695,1735773041073,-500.0,0.00019178,2]
[347409697,1735773041083,-151.0,0.00019178,2]
[347409699,1735773041092,-500.0,0.00019178,2]
[347409701,1735773041102,-500.0,0.00019178,2]
[347409703,1735773041111,-188.86473845,0.00019178,2]
[347409705,1735773041121,-488.73297296,0.00019178,2]
[347409707,1735773041133,-11.26702704,0.00019178,2]
[347409709,1735773041143,-1035.93,0.00019178,2]
[347409711,1735773041153,-500.0,0.00019178,2]
[347409713,1735773041162,-500.0,0.00019178,2]
[347409715,1735773041172,-685.7,0.00019178,2]
[347409717,1735773041181,-858.45,0.00019178,2]
[347409719,1735773041191,-500.0,0.00019178,2]
[347409721,1735773041205,-1186.47,0.00019178,2]
[347409723,1735773041215,-386.74913043,0.00019178,2]
[347409725,1735773041224,-535.57030698,0.00019178,2]
[347409727,1735773041234,-151.0,0.00019178,2]
[347409728,1735773041245,-151.0,0.00019178,2]
[347409730,1735773041255,-674.09,0.00019178,2]
[347409732,1735773041264,-500.0,0.00019178,2]
[347409734,1735773041275,-151.0,0.00019178,2]
[347409736,1735773041285,-500.0,0.00019178,2]
[347409738,1735773041295,-1016.99,0.00019178,2]
[347409741,1735773041305,-500.0,0.00019178,2]
[347409743,1735773041314,-500.0,0.00019178,2]
[347409745,1735773041325,-693.09,0.00019178,2]
[347409747,1735773041334,-679.59,0.00019178,2]
[347409749,1735773041344,-500.0,0.00019178,2]
[347409751,1735773041354,-500.0,0.00019178,2]
[347409752,1735773041364,-500.0,0.00019178,2]
[347409755,1735773041374,-500.0,0.00019178,2]
[347409756,1735773041383,-500.0,0.00019178,2]
[347409758,1735773041394,-151.0,0.00019178,2]
[347409759,1735773041403,-500.0,0.00019178,2]
[347409761,1735773041413,-500.0,0.00019178,2]
[347409763,1735773041423,-500.0,0.00019178,2]
[347409765,1735773041432,-500.0,0.00019178,2]
[347409767,1735773041441,-500.0,0.00019178,2]
[347409769,1735773041451,-500.0,0.00019178,2]
[347409771,1735773041461,-500.0,0.00019178,2]
[347409773,1735773041471,-500.0,0.00019178,2]
[347409775,1735773041480,-787.41,0.00019178,2]
[347409777,1735773041490,-702.39,0.00019178,2]
[347409779,1735773041498,-216.26200128,0.00019178,2]
[347409781,1735773041508,-500.0,0.00019178,2]
[347409782,1735773041517,-1597.06,0.00019178,2]
[347409785,1735773041650,-760.52,0.00019178,2]
[347409786,1735773041660,-500.0,0.00019178,2]
[347409787,1735773041670,-1480.4,0.00019178,2]
[347409788,1735773041679,-749.27,0.00019178,2]
[347409789,1735773041689,-500.0,0.00019178,2]
[347409790,1735773041698,-594.79,0.00019178,2]
[347409791,1735773041707,-1419.58,0.00019178,2]
[347409792,1735773041717,-500.0,0.00019178,2]
[347409793,1735773041726,-500.0,0.00019178,2]
[347409794,1735773041736,-1097.05,0.00019178,2]
[347409795,1735773041746,-500.0,0.00019178,2]
[347409796,1735773041756,-151.0,0.00019178,2]
[347409797,1735773041765,-500.0,0.00019178,2]
[347409798,1735773041774,-779.16,0.00019178,2]
[347409799,1735773041784,-500.0,0.00019178,2]
[347409800,1735773041793,-614.68,0.00019178,2]
[347409801,1735773041802,-500.0,0.00019178,2]
[347409802,1735773041812,-975.3,0.00019178,2]
[347409803,1735773041821,-500.0,0.00019178,2]
[347409804,1735773041830,-500.0,0.00019178,2]
[347409805,1735773041841,-891.43,0.00019178,2]
[347409806,1735773041850,-500.0,0.00019178,2]
[347409807,1735773041860,-2174.38,0.00019178,2]
[347409808,1735773041870,-500.0,0.00019178,2]
[347409809,1735773041880,-669.7,0.00019178,2]
[347409810,1735773041889,-892.51,0.00019178,2]
[347409811,1735773041899,-500.0,0.00019178,2]
[347409812,1735773041908,-816.61,0.00019178,2]
[347409813,1735773041918,-500.0,0.00019178,2]
[347409814,1735773041928,-500.0,0.00019178,2]
[347409815,1735773041937,-500.0,0.00019178,2]
[347409816,1735773041947,-500.0,0.00019178,2]
[347409817,1735773041957,-500.0,0.00019178,2]
[347409818,1735773041966,-423.60396164,0.00019178,2]
[347409819,1735773041976,-500.0,0.00019178,2]
[347409820,1735773041986,-500.0,0.00019178,2]
[347409821,1735773041995,-1168.42,0.00019178,2]
[347409822,1735773042004,-500.0,0.00019178,2]
[347409823,1735773042013,-500.0,0.00019178,2]
[347409824,1735773042023,-1073.64,0.00019178,2]
[347409825,1735773042032,-500.0,0.00019178,2]
[347409826,1735773042041,-500.0,0.00019178,2]
[347409827,1735773042050,-1001.66,0.00019178,2]
[347409828,1735773042060,-500.0,0.00019178,2]
[347409829,1735773042069,-500.0,0.00019178,2]
[347409830,1735773042079,-500.0,0.00019178,2]
[347409831,1735773042088,-1335.74,0.00019178,2]
[347409832,1735773042097,-500.0,0.00019178,2]
[347409833,1735773042107,-500.0,0.00019178,2]
[347409834,1735773042116,-151.0,0.00019178,2]
[347409835,1735773042125,-151.0,0.00019178,2]
[347409836,1735773042134,-501.45,0.00019178,2]
[347409837,1735773042144,-500.0,0.00019178,2]
[347409838,1735773042153,-500.0,0.00019178,2]
[347409839,1735773042162,-3471.02,0.00019178,2]
[347409840,1735773042171,-1684.0,0.00019178,2]
[347409841,1735773042181,-500.0,0.00019178,2]
[347409842,1735773042190,-500.0,0.00019178,2]
[347409843,1735773042204,-975.35,0.00019178,2]
[347409844,1735773042214,-3993.68,0.00019178,2]
[347409845,1735773042223,-675.96,0.00019178,2]
[347409846,1735773042232,-500.0,0.00019178,2]
[347409847,1735773042242,-1684.18,0.00019178,2]
[347409848,1735773042251,-500.0,0.00019178,2]
[347409849,1735773042261,-544.05,0.00019178,2]
[347409850,1735773042270,-855.7,0.00019178,2]
[347409851,1735773042279,-674.42,0.00019178,2]
[347409852,1735773042289,-1336.09,0.00019178,2]
[347409853,1735773042298,-500.0,0.00019178,2]
[347409854,1735773042308,-500.0,0.00019178,2]
[347409855,1735773042317,-500.0,0.00019178,2]
[347409856,1735773042326,-500.0,0.00019178,2]
[347409857,1735773042335,-4145.12,0.00019178,2]
[347409858,1735773042344,-500.0,0.00019178,2]
[347409859,1735773042353,-29365.7,0.00019178,2]
[347409860,1735773042361,-152.34657847,0.00019178,2]
[347409861,1735773042371,-500.0,0.00019178,2]
[347409862,1735773042379,-306.91271428,0.00019178,2]
[347409863,1735773042391,-2528.71,0.00019178,2]
[347409864,1735773042401,-2655.82,0.00019178,2]
[347409865,1735773042410,-500.0,0.00019178,2]
[347409866,1735773042418,-500.0,0.00019178,2]
[347409867,1735773042427,-500.0,0.00019178,2]
[347409868,1735773042437,-509.57,0.00019178,2]
[347409869,1735773042445,-1117.29,0.00019178,2]
[347409870,1735773042455,-500.0,0.00019178,2]
[347409871,1735773042463,-728.25,0.00019178,2]
[347409872,1735773042473,-500.0,0.00019178,2]
[347409873,1735773042482,-500.0,0.00019178,2]
[347409874,1735773042491,-500.0,0.00019178,2]
[347409875,1735773042500,-1480.38,0.00019178,2]
[347409876,1735773042509,-638.88,0.00019178,2]
[347409877,1735773042518,-500.0,0.00019178,2]
[347409878,1735773042527,-500.0,0.00019178,2]
[347409879,1735773042537,-500.0,0.00019178,2]
[347409880,1735773042546,-500.0,0.00019178,2]
[347409881,1735773042555,-903.87,0.00019178,2]
[347409882,1735773042564,-669.57,0.00019178,2]
[347409883,1735773042573,-156.88000006,0.00019178,2]
[347409884,1735773042583,-500.0,0.00019178,2]
[347409885,1735773042592,-1929.52,0.00019178,2]
[347409886,1735773042601,-500.0,0.00019178,2]
[347409887,1735773042610,-502.98698104,0.00019178,2]
[347409888,1735773042619,-500.0,0.00019178,2]
[347409889,1735773042629,-151.0,0.00019178,2]